[Event "*** MasterClass Titled Tuesday Blitz"]
[Site "Chess.com"]
[Date "2017.07.04"]
[Round "1"]
[White "Witik"]
[Black "amurdercastle"]
[Result "1-0"]
[WhiteElo "2545"]
[BlackElo "2271"]
[TimeControl "180+2"]
[EndTime "13:02:43 PDT"]
[Termination "Witik won by resignation"]

1. d4 {[%clk 0:03:00.5]} 1... d5 {[%clk 0:02:59.1]} 2. Bf4 {[%clk 0:03:01.1]}
2... Nf6 {[%clk 0:02:58.7]} 3. e3 {[%clk 0:03:02.1]} 3... c5 {[%clk 0:02:53.4]}
4. c3 {[%clk 0:03:01.9]} 4... Nc6 {[%clk 0:02:43.4]} 5. Nd2 {[%clk 0:03:02.4]}
5... e6 {[%clk 0:02:42.4]} 6. Bd3 {[%clk 0:03:02.4]} 6... Bd6 {[%clk 0:02:36.4]}
7. Bxd6 {[%clk 0:03:02.5]} 7... Qxd6 {[%clk 0:02:36.1]} 8. f4 {[%clk 0:03:04.4]}
8... b6 {[%clk 0:02:34.8]} 9. Ngf3 {[%clk 0:03:03.7]} 9... Bb7 {[%clk
0:02:34.2]} 10. Ne5 {[%clk 0:03:01.3]} 10... Ne7 {[%clk 0:02:33.7]} 11. Qa4+
{[%clk 0:02:48.8]} 11... Nd7 {[%clk 0:02:28.4]} 12. Bb5 {[%clk 0:02:47.8]} 12...
Rd8 {[%clk 0:02:20.4]} 13. Bxd7+ {[%clk 0:02:46.5]} 13... Rxd7 {[%clk
0:02:22.3]} 14. Qxd7+ {[%clk 0:02:47]} 14... Qxd7 {[%clk 0:02:24.2]} 15. Nxd7
{[%clk 0:02:48.4]} 15... Kxd7 {[%clk 0:02:25.6]} 16. Kf2 {[%clk 0:02:38.8]} 1-0

[Event "*** MasterClass Titled Tuesday Blitz"]
[Site "Chess.com"]
[Date "2017.07.04"]
[Round "1"]
[White "FLchessplayer"]
[Black "IljaZaragatski"]
[Result "0-1"]
[WhiteElo "2055"]
[BlackElo "2409"]
[TimeControl "180+2"]
[EndTime "13:02:56 PDT"]
[Termination "IljaZaragatski won by resignation"]

1. Nf3 {[%clk 0:03:00.8]} 1... f5 {[%clk 0:02:58.9]} 2. d3 {[%clk 0:02:56.2]}
2... d6 {[%clk 0:02:58.7]} 3. Nbd2 {[%clk 0:02:57]} 3... Nf6 {[%clk 0:02:58.2]}
4. e4 {[%clk 0:02:56.8]} 4... e5 {[%clk 0:02:59.3]} 5. g3 {[%clk 0:02:57.3]}
5... Nc6 {[%clk 0:02:59.6]} 6. Bg2 {[%clk 0:02:58.1]} 6... Be7 {[%clk
0:03:00.9]} 7. c3 {[%clk 0:02:59.1]} 7... O-O {[%clk 0:03:01.7]} 8. Qc2 {[%clk
0:03:00.1]} 8... Kh8 {[%clk 0:03:00.4]} 9. O-O {[%clk 0:03:00.7]} 9... Bd7
{[%clk 0:02:31.9]} 10. a3 {[%clk 0:03:00.6]} 10... Qe8 {[%clk 0:02:31.9]} 11.
Qd1 {[%clk 0:02:55.2]} 11... Qh5 {[%clk 0:02:29.4]} 12. exf5 {[%clk 0:02:51]}
12... Bxf5 {[%clk 0:02:28.2]} 13. d4 {[%clk 0:02:51.9]} 13... Bg4 {[%clk
0:02:14.6]} 14. Qb3 {[%clk 0:02:46.2]} 14... e4 {[%clk 0:02:09.7]} 15. Ne1
{[%clk 0:02:46.8]} 15... Be2 {[%clk 0:02:06.3]} 16. Qxb7 {[%clk 0:02:45.9]}
16... Na5 {[%clk 0:02:05.7]} 17. Qxc7 {[%clk 0:02:44.5]} 17... Rae8 {[%clk
0:01:53.7]} 18. Qxa5 {[%clk 0:02:42.6]} 18... Qxa5 {[%clk 0:01:53.7]} 0-1

[Event "*** MasterClass Titled Tuesday Blitz"]
[Site "Chess.com"]
[Date "2017.07.04"]
[Round "1"]
[White "MarshKnight"]
[Black "x-3738459472"]
[Result "0-1"]
[WhiteElo "2169"]
[BlackElo "2450"]
[TimeControl "180+2"]
[EndTime "13:03:36 PDT"]
[Termination "x-3738459472 won by checkmate"]

1. e4 {[%clk 0:03:01.1]} 1... c5 {[%clk 0:02:59.8]} 2. Nf3 {[%clk 0:03:02.2]}
2... Nc6 {[%clk 0:03:00.4]} 3. d4 {[%clk 0:03:03.6]} 3... cxd4 {[%clk
0:03:00.9]} 4. Nxd4 {[%clk 0:03:04.6]} 4... e5 {[%clk 0:03:02.5]} 5. Nb5 {[%clk
0:03:04.5]} 5... d6 {[%clk 0:03:02.7]} 6. N1c3 {[%clk 0:03:01.5]} 6... a6 {[%clk
0:03:03.1]} 7. Na3 {[%clk 0:03:03.1]} 7... b5 {[%clk 0:03:03.3]} 8. Nd5 {[%clk
0:03:04.5]} 8... Nge7 {[%clk 0:03:03.7]} 9. c4 {[%clk 0:03:02.5]} 9... Nd4
{[%clk 0:03:03.9]} 10. cxb5 {[%clk 0:03:01.9]} 10... Nxd5 {[%clk 0:03:04]} 11.
exd5 {[%clk 0:03:02.2]} 11... Be7 {[%clk 0:03:05.1]} 12. Bd3 {[%clk 0:02:57.1]}
12... O-O {[%clk 0:03:04.4]} 13. O-O {[%clk 0:02:57.9]} 13... f5 {[%clk
0:03:04.2]} 14. Be3 {[%clk 0:02:54.1]} 14... Nxb5 {[%clk 0:02:59.6]} 15. Nxb5
{[%clk 0:02:51]} 15... axb5 {[%clk 0:02:59.7]} 16. Bxb5 {[%clk 0:02:52.6]} 16...
f4 {[%clk 0:02:57.7]} 17. Bd2 {[%clk 0:02:49.5]} 17... f3 {[%clk 0:02:58.2]} 18.
Re1 {[%clk 0:02:41.2]} 18... fxg2 {[%clk 0:02:57.6]} 19. Bd3 {[%clk 0:02:38.9]}
19... Bh4 {[%clk 0:02:47.7]} 20. Be3 {[%clk 0:02:39]} 20... Qf6 {[%clk
0:02:43.7]} 21. Qe2 {[%clk 0:02:19.2]} 21... Ra4 {[%clk 0:02:39]} 22. Bxh7+
{[%clk 0:01:57.5]} 22... Kxh7 {[%clk 0:02:36.3]} 23. Qc2+ {[%clk 0:01:57.3]}
23... Kg8 {[%clk 0:02:35.6]} 24. Qxa4 {[%clk 0:01:58.2]} 24... Bxf2+ {[%clk
0:02:36.2]} 25. Kxg2 {[%clk 0:01:59.6]} 25... Qf3+ {[%clk 0:02:31.5]} 26. Kf1
{[%clk 0:01:53]} 26... Bxe3# {[%clk 0:02:31.3]} 0-1

[Event "*** MasterClass Titled Tuesday Blitz"]
[Site "Chess.com"]
[Date "2017.07.04"]
[Round "1"]
[White "rithwik2002"]
[Black "Rokis13"]
[Result "0-1"]
[WhiteElo "1786"]
[BlackElo "2358"]
[TimeControl "180+2"]
[EndTime "13:04:07 PDT"]
[Termination "Rokis13 won by resignation"]

1. d4 {[%clk 0:02:58.2]} 1... Nf6 {[%clk 0:02:57]} 2. c4 {[%clk 0:02:48.1]} 2...
e6 {[%clk 0:02:57.2]} 3. Nc3 {[%clk 0:02:46.3]} 3... Bb4 {[%clk 0:02:56.9]} 4.
e3 {[%clk 0:02:46.2]} 4... O-O {[%clk 0:02:55.6]} 5. Bd3 {[%clk 0:02:44.5]} 5...
d6 {[%clk 0:02:54.9]} 6. Nf3 {[%clk 0:02:40.4]} 6... Qe7 {[%clk 0:02:56]} 7. a3
{[%clk 0:02:25.9]} 7... Bxc3+ {[%clk 0:02:55.3]} 8. bxc3 {[%clk 0:02:27.8]} 8...
e5 {[%clk 0:02:57.2]} 9. Nd2 {[%clk 0:02:27.5]} 9... Nc6 {[%clk 0:02:56.4]} 10.
O-O {[%clk 0:02:26.6]} 10... Bg4 {[%clk 0:02:52.1]} 11. f3 {[%clk 0:02:23.1]}
11... exd4 {[%clk 0:02:43.5]} 12. e4 {[%clk 0:02:07.8]} 12... dxc3 {[%clk
0:02:42.7]} 13. fxg4 {[%clk 0:01:59.2]} 13... cxd2 {[%clk 0:02:43.2]} 14. Bxd2
{[%clk 0:02:01.1]} 14... Ne5 {[%clk 0:02:41.8]} 15. Be2 {[%clk 0:01:56.2]} 15...
Nxe4 {[%clk 0:02:41.7]} 16. Bf4 {[%clk 0:01:51.8]} 16... Nc3 {[%clk 0:02:38.8]}
17. Qc2 {[%clk 0:01:47.8]} 17... Nxe2+ {[%clk 0:02:33.3]} 18. Qxe2 {[%clk
0:01:49.7]} 18... Rfe8 {[%clk 0:02:34.1]} 19. Rfe1 {[%clk 0:01:45.8]} 19... Qe6
{[%clk 0:02:34.5]} 20. Rab1 {[%clk 0:01:43.6]} 20... b6 {[%clk 0:02:34.5]} 21.
Bxe5 {[%clk 0:01:36.4]} 21... Qxe5 {[%clk 0:02:29.3]} 22. Qf3 {[%clk 0:01:33.9]}
22... Qc5+ {[%clk 0:02:23.5]} 23. Kf1 {[%clk 0:01:31.3]} 23... Qxc4+ {[%clk
0:02:24.1]} 0-1

[Event "*** MasterClass Titled Tuesday Blitz"]
[Site "Chess.com"]
[Date "2017.07.04"]
[Round "1"]
[White "dalmatinac101"]
[Black "Winehouse83"]
[Result "1-0"]
[WhiteElo "2576"]
[BlackElo "2297"]
[TimeControl "180+2"]
[EndTime "13:05:12 PDT"]
[Termination "dalmatinac101 won by resignation"]

1. e4 {[%clk 0:03:02]} 1... e5 {[%clk 0:02:56.6]} 2. Nf3 {[%clk 0:03:03]} 2...
Nc6 {[%clk 0:02:56.6]} 3. Bb5 {[%clk 0:03:04.2]} 3... a6 {[%clk 0:02:54.7]} 4.
Ba4 {[%clk 0:03:05.1]} 4... Nf6 {[%clk 0:02:54.7]} 5. O-O {[%clk 0:03:06.1]}
5... b5 {[%clk 0:02:53.9]} 6. Bb3 {[%clk 0:03:06.8]} 6... Bc5 {[%clk 0:02:55.8]}
7. c3 {[%clk 0:03:07.1]} 7... d6 {[%clk 0:02:55.6]} 8. d4 {[%clk 0:03:08.2]}
8... Bb6 {[%clk 0:02:56.7]} 9. a4 {[%clk 0:03:09.5]} 9... Rb8 {[%clk 0:02:56.5]}
10. a5 {[%clk 0:03:10.6]} 10... Nxa5 {[%clk 0:02:44.1]} 11. Rxa5 {[%clk
0:03:04.1]} 11... Bxa5 {[%clk 0:02:43.2]} 12. dxe5 {[%clk 0:03:02.7]} 12... dxe5
{[%clk 0:02:36.7]} 13. Qxd8+ {[%clk 0:03:02.5]} 13... Kxd8 {[%clk 0:02:37.4]}
14. Nxe5 {[%clk 0:03:04.3]} 14... Be6 {[%clk 0:02:30.5]} 15. Bxe6 {[%clk
0:03:01.8]} 15... fxe6 {[%clk 0:02:31.1]} 16. Nc6+ {[%clk 0:03:02.7]} 16... Kd7
{[%clk 0:02:32.2]} 17. Nxa5 {[%clk 0:03:01.6]} 17... Nxe4 {[%clk 0:02:33]} 18.
Nd2 {[%clk 0:03:00.4]} 18... Nxd2 {[%clk 0:02:27.3]} 19. Bxd2 {[%clk 0:03:01.3]}
19... Rhf8 {[%clk 0:02:26]} 20. Be3 {[%clk 0:03:00.3]} 20... Rf5 {[%clk
0:02:26.5]} 21. b4 {[%clk 0:03:00.7]} 21... Rd5 {[%clk 0:02:26.5]} 22. Nb3
{[%clk 0:02:59.2]} 22... Ra8 {[%clk 0:02:22]} 23. Ra1 {[%clk 0:02:59.7]} 23...
Ke7 {[%clk 0:02:17.4]} 24. Kf1 {[%clk 0:03:00.2]} 24... Kf7 {[%clk 0:02:18.3]}
25. Ke2 {[%clk 0:03:00.7]} 25... Rd6 {[%clk 0:02:19.4]} 26. Nc5 {[%clk
0:03:00.1]} 26... Rc6 {[%clk 0:02:20.3]} 27. f4 {[%clk 0:02:58.1]} 27... h6
{[%clk 0:02:11.6]} 28. h4 {[%clk 0:02:58.5]} 28... Kf6 {[%clk 0:01:30.4]} 29.
Bd4+ {[%clk 0:02:55.6]} 29... Kf7 {[%clk 0:01:30.6]} 30. g4 {[%clk 0:02:53.6]}
30... g6 {[%clk 0:01:29.3]} 31. Kf3 {[%clk 0:02:53.8]} 31... Kg8 {[%clk
0:01:23.4]} 32. Nd7 {[%clk 0:02:47.8]} 32... Rd6 {[%clk 0:01:21.9]} 33. Ne5
{[%clk 0:02:47.3]} 33... Kh7 {[%clk 0:01:22.5]} 34. Ke4 {[%clk 0:02:45.5]} 34...
Rf8 {[%clk 0:01:19.4]} 35. Bc5 {[%clk 0:02:41]} 35... Rfd8 {[%clk 0:01:19.4]}
1-0

[Event "*** MasterClass Titled Tuesday Blitz"]
[Site "Chess.com"]
[Date "2017.07.04"]
[Round "1"]
[White "ChessQueen"]
[Black "stalyansky"]
[Result "1-0"]
[WhiteElo "2509"]
[BlackElo "2247"]
[TimeControl "180+2"]
[EndTime "13:05:49 PDT"]
[Termination "ChessQueen won by resignation"]

1. e4 {[%clk 0:03:01.4]} 1... e5 {[%clk 0:02:56.3]} 2. Nf3 {[%clk 0:03:02.2]}
2... Nc6 {[%clk 0:02:57.4]} 3. Bb5 {[%clk 0:03:02.8]} 3... a6 {[%clk 0:02:58]}
4. Ba4 {[%clk 0:03:03.6]} 4... d6 {[%clk 0:02:59.5]} 5. O-O {[%clk 0:03:03.3]}
5... Bd7 {[%clk 0:03:00.9]} 6. c4 {[%clk 0:03:04.2]} 6... g6 {[%clk 0:03:02]} 7.
d4 {[%clk 0:03:03.8]} 7... Bg7 {[%clk 0:03:00.4]} 8. Bg5 {[%clk 0:02:58.2]} 8...
f6 {[%clk 0:03:00.6]} 9. Be3 {[%clk 0:02:58.2]} 9... Nh6 {[%clk 0:02:52.9]} 10.
c5 {[%clk 0:02:50]} 10... Nf7 {[%clk 0:02:03.5]} 11. cxd6 {[%clk 0:02:36.5]}
11... cxd6 {[%clk 0:02:02.6]} 12. dxe5 {[%clk 0:02:37.7]} 12... fxe5 {[%clk
0:01:37]} 13. Bb3 {[%clk 0:02:37.7]} 13... Bg4 {[%clk 0:00:48.7]} 14. Bxf7+
{[%clk 0:02:21.3]} 14... Kxf7 {[%clk 0:00:48.9]} 15. Qb3+ {[%clk 0:02:22.3]}
15... Ke8 {[%clk 0:00:26.7]} 16. Qxb7 {[%clk 0:02:22]} 16... Ne7 {[%clk
0:00:16.4]} 17. Nbd2 {[%clk 0:02:16.1]} 17... Rf8 {[%clk 0:00:15.5]} 18. Rac1
{[%clk 0:02:14.2]} 18... Rb8 {[%clk 0:00:14.8]} 19. Qxa6 {[%clk 0:02:14.3]}
19... Rxb2 {[%clk 0:00:15.5]} 20. Nc4 {[%clk 0:01:58.5]} 20... Bxf3 {[%clk
0:00:13.9]} 21. Nxb2 {[%clk 0:01:45.1]} 1-0

[Event "*** MasterClass Titled Tuesday Blitz"]
[Site "Chess.com"]
[Date "2017.07.04"]
[Round "1"]
[White "Hikaru"]
[Black "ohusbands"]
[Result "1-0"]
[WhiteElo "2978"]
[BlackElo "2353"]
[TimeControl "180+2"]
[EndTime "13:05:59 PDT"]
[Termination "Hikaru won by resignation"]

1. Nf3 {[%clk 0:02:52.1]} 1... d5 {[%clk 0:02:47.3]} 2. e3 {[%clk 0:02:54]} 2...
Nf6 {[%clk 0:02:47.9]} 3. d4 {[%clk 0:02:50.5]} 3... e6 {[%clk 0:02:48.8]} 4. c4
{[%clk 0:02:44.1]} 4... Be7 {[%clk 0:02:42.7]} 5. b3 {[%clk 0:02:35.1]} 5... O-O
{[%clk 0:02:42.7]} 6. Nbd2 {[%clk 0:02:36.5]} 6... b6 {[%clk 0:02:33.4]} 7. Bb2
{[%clk 0:02:38.4]} 7... Bb7 {[%clk 0:02:30]} 8. Bd3 {[%clk 0:02:39.9]} 8... a5
{[%clk 0:02:30]} 9. O-O {[%clk 0:02:39.6]} 9... a4 {[%clk 0:02:30.8]} 10. Qc2
{[%clk 0:02:40.2]} 10... Nc6 {[%clk 0:02:28]} 11. Bc3 {[%clk 0:02:39.1]} 11...
Nb4 {[%clk 0:02:08.9]} 12. Bxb4 {[%clk 0:02:38.8]} 12... Bxb4 {[%clk 0:02:10.8]}
13. c5 {[%clk 0:02:39.3]} 13... bxc5 {[%clk 0:01:52.6]} 14. dxc5 {[%clk
0:02:41.2]} 14... Qe7 {[%clk 0:01:29.5]} 15. Rfc1 {[%clk 0:02:35.3]} 15... e5
{[%clk 0:01:27.1]} 16. c6 {[%clk 0:02:29.9]} 16... Ba6 {[%clk 0:01:23.3]} 17.
Bxa6 {[%clk 0:02:30.1]} 17... Rxa6 {[%clk 0:01:25.2]} 18. bxa4 {[%clk
0:02:23.6]} 18... Bd6 {[%clk 0:01:06.4]} 19. e4 {[%clk 0:02:24.3]} 19... Rfa8
{[%clk 0:01:02.5]} 20. exd5 {[%clk 0:02:24.9]} 20... Nxd5 {[%clk 0:01:04.4]} 21.
Qb3 {[%clk 0:02:21.6]} 21... Nf4 {[%clk 0:01:00.7]} 22. Re1 {[%clk 0:02:21.3]}
22... Rxa4 {[%clk 0:00:59.1]} 23. Nc4 {[%clk 0:02:21]} 23... Qe6 {[%clk
0:00:47.2]} 24. Nfd2 {[%clk 0:02:17.8]} 24... Qg4 {[%clk 0:00:24]} 25. g3 {[%clk
0:02:18.7]} 25... Ne2+ {[%clk 0:00:20.3]} 26. Kg2 {[%clk 0:02:19.7]} 26... Nd4
{[%clk 0:00:21.8]} 27. Qd3 {[%clk 0:02:20.3]} 27... Rxa2 {[%clk 0:00:11.6]} 28.
Rxa2 {[%clk 0:02:22.2]} 28... Rxa2 {[%clk 0:00:12]} 29. Rb1 {[%clk 0:02:23.6]}
29... g6 {[%clk 0:00:11.8]} 30. Ne4 {[%clk 0:02:25]} 30... f5 {[%clk 0:00:07.8]}
31. Nf6+ {[%clk 0:02:25.2]} 1-0

[Event "*** MasterClass Titled Tuesday Blitz"]
[Site "Chess.com"]
[Date "2017.07.04"]
[Round "1"]
[White "dhanushbharadwaj"]
[Black "DanielNaroditsky"]
[Result "0-1"]
[WhiteElo "2335"]
[BlackElo "2728"]
[TimeControl "180+2"]
[EndTime "13:06:01 PDT"]
[Termination "DanielNaroditsky won by resignation"]

1. Nf3 {[%clk 0:03:01.9]} 1... Nf6 {[%clk 0:03:01.1]} 2. c4 {[%clk 0:03:02.1]}
2... c5 {[%clk 0:03:00.6]} 3. Nc3 {[%clk 0:03:02.7]} 3... Nc6 {[%clk 0:02:59.1]}
4. g3 {[%clk 0:02:59.8]} 4... g6 {[%clk 0:02:40.4]} 5. Bg2 {[%clk 0:02:59.8]}
5... Bg7 {[%clk 0:02:41.1]} 6. O-O {[%clk 0:03:00.6]} 6... O-O {[%clk
0:02:24.9]} 7. d4 {[%clk 0:02:59.1]} 7... cxd4 {[%clk 0:02:22.5]} 8. Nxd4 {[%clk
0:02:59.8]} 8... Qa5 {[%clk 0:02:18.8]} 9. e3 {[%clk 0:02:53.7]} 9... Qh5 {[%clk
0:02:15]} 10. Qxh5 {[%clk 0:02:52.9]} 10... Nxh5 {[%clk 0:02:12.4]} 11. Nd5
{[%clk 0:02:48.2]} 11... e6 {[%clk 0:02:03]} 12. Nc7 {[%clk 0:02:49]} 12... Rb8
{[%clk 0:02:00.5]} 13. Ndb5 {[%clk 0:02:49.9]} 13... a6 {[%clk 0:01:58.1]} 14.
Nd6 {[%clk 0:02:50.2]} 14... Be5 {[%clk 0:01:59.4]} 15. c5 {[%clk 0:02:49.2]}
15... b6 {[%clk 0:01:51.8]} 16. f4 {[%clk 0:02:30.9]} 16... Bg7 {[%clk
0:01:48.1]} 17. cxb6 {[%clk 0:02:19.2]} 17... Rxb6 {[%clk 0:01:48.3]} 18. Nc4
{[%clk 0:02:20.3]} 18... Rb4 {[%clk 0:01:46.1]} 19. Nd6 {[%clk 0:02:07.6]} 19...
Bxb2 {[%clk 0:01:41.9]} 20. Bxb2 {[%clk 0:02:07.8]} 20... Rxb2 {[%clk
0:01:41.2]} 21. Bxc6 {[%clk 0:02:09]} 21... dxc6 {[%clk 0:01:41.3]} 22. Rfb1
{[%clk 0:02:09.8]} 22... Rd2 {[%clk 0:01:36.7]} 23. Nxc8 {[%clk 0:02:09.8]}
23... Rxc8 {[%clk 0:01:36.2]} 24. Nxa6 {[%clk 0:02:11.7]} 24... c5 {[%clk
0:01:34.2]} 25. Rb8 {[%clk 0:01:54.8]} 25... Rxb8 {[%clk 0:01:34]} 26. Nxb8
{[%clk 0:01:56.7]} 26... c4 {[%clk 0:01:30.1]} 27. Rc1 {[%clk 0:01:56.9]} 27...
Nf6 {[%clk 0:01:27.1]} 28. Rxc4 {[%clk 0:01:56]} 28... Ng4 {[%clk 0:01:28.1]}
29. h3 {[%clk 0:01:37.2]} 29... Rd1+ {[%clk 0:01:27.9]} 0-1

[Event "*** MasterClass Titled Tuesday Blitz"]
[Site "Chess.com"]
[Date "2017.07.04"]
[Round "1"]
[White "politeplayer"]
[Black "KNVB"]
[Result "0-1"]
[WhiteElo "2182"]
[BlackElo "2454"]
[TimeControl "180+2"]
[EndTime "13:06:23 PDT"]
[Termination "KNVB won by checkmate"]

1. e4 {[%clk 0:00:35.3]} 1... e6 {[%clk 0:02:52]} 2. Nf3 {[%clk 0:00:36.6]} 2...
d5 {[%clk 0:02:50.8]} 3. exd5 {[%clk 0:00:38]} 3... exd5 {[%clk 0:02:52.7]} 4.
d4 {[%clk 0:00:39]} 4... Bd6 {[%clk 0:02:52.8]} 5. Bd3 {[%clk 0:00:40.3]} 5...
Ne7 {[%clk 0:02:53.1]} 6. O-O {[%clk 0:00:41.8]} 6... Bg4 {[%clk 0:02:53.6]} 7.
Re1 {[%clk 0:00:41.5]} 7... Nc6 {[%clk 0:02:54.2]} 8. c3 {[%clk 0:00:41.6]} 8...
Qd7 {[%clk 0:02:55.1]} 9. Nbd2 {[%clk 0:00:42.3]} 9... O-O-O {[%clk 0:02:53.9]}
10. b4 {[%clk 0:00:41.9]} 10... Ng6 {[%clk 0:02:54.8]} 11. a4 {[%clk 0:00:36.3]}
11... Rde8 {[%clk 0:02:44.6]} 12. a5 {[%clk 0:00:32.2]} 12... Rxe1+ {[%clk
0:02:03.1]} 13. Qxe1 {[%clk 0:00:32.8]} 13... Re8 {[%clk 0:02:04.5]} 14. Qd1
{[%clk 0:00:33.7]} 14... Nh4 {[%clk 0:02:04.6]} 15. a6 {[%clk 0:00:28.6]} 15...
b6 {[%clk 0:01:38.3]} 16. Ba3 {[%clk 0:00:23.7]} 16... Re6 {[%clk 0:01:35.2]}
17. Bb5 {[%clk 0:00:20.9]} 17... Rg6 {[%clk 0:01:29]} 18. Bxc6 {[%clk
0:00:20.7]} 18... Qxc6 {[%clk 0:01:29.2]} 19. b5 {[%clk 0:00:21.9]} 19... Qxc3
{[%clk 0:01:24.4]} 20. Bxd6 {[%clk 0:00:21.7]} 20... Nxf3+ {[%clk 0:01:19]} 21.
Nxf3 {[%clk 0:00:20.9]} 21... Bxf3 {[%clk 0:01:19.6]} 22. Qc1 {[%clk 0:00:15.3]}
22... Rxg2+ {[%clk 0:01:11.3]} 23. Kf1 {[%clk 0:00:15.3]} 23... Qd3+ {[%clk
0:01:11.9]} 24. Ke1 {[%clk 0:00:16.2]} 24... Qe2# {[%clk 0:01:12.7]} 0-1

[Event "*** MasterClass Titled Tuesday Blitz"]
[Site "Chess.com"]
[Date "2017.07.04"]
[Round "1"]
[White "JammyDodger91"]
[Black "scrapnel"]
[Result "0-1"]
[WhiteElo "2288"]
[BlackElo "2560"]
[TimeControl "180+2"]
[EndTime "13:06:39 PDT"]
[Termination "scrapnel won by resignation"]

1. e4 {[%clk 0:03:01.9]} 1... c6 {[%clk 0:03:00.2]} 2. d4 {[%clk 0:03:01.9]}
2... d5 {[%clk 0:03:01.3]} 3. e5 {[%clk 0:03:01.5]} 3... Bf5 {[%clk 0:03:01.9]}
4. Nf3 {[%clk 0:03:02.7]} 4... e6 {[%clk 0:03:01.9]} 5. Be2 {[%clk 0:03:02.7]}
5... Ne7 {[%clk 0:02:59.3]} 6. Be3 {[%clk 0:02:47]} 6... Bg6 {[%clk 0:02:59]} 7.
Nbd2 {[%clk 0:02:47.2]} 7... Nf5 {[%clk 0:02:59.3]} 8. Nb3 {[%clk 0:02:46.9]}
8... Nd7 {[%clk 0:02:58]} 9. a4 {[%clk 0:02:42.7]} 9... a6 {[%clk 0:02:51.3]}
10. Bd2 {[%clk 0:02:37.7]} 10... c5 {[%clk 0:02:51.4]} 11. c3 {[%clk 0:02:00.7]}
11... Be7 {[%clk 0:02:43.5]} 12. O-O {[%clk 0:02:00.8]} 12... c4 {[%clk
0:02:31.2]} 13. Nc1 {[%clk 0:01:59.9]} 13... O-O {[%clk 0:02:31.4]} 14. Kh1
{[%clk 0:01:59]} 14... b5 {[%clk 0:02:26.8]} 15. b4 {[%clk 0:01:43.7]} 15...
cxb3 {[%clk 0:02:23]} 16. Nxb3 {[%clk 0:01:43.8]} 16... Qb6 {[%clk 0:02:15.2]}
17. g4 {[%clk 0:01:37]} 17... Nh4 {[%clk 0:02:13.8]} 18. Nxh4 {[%clk 0:01:37.6]}
18... Bxh4 {[%clk 0:02:14.4]} 19. f4 {[%clk 0:01:34.7]} 19... bxa4 {[%clk
0:02:06.3]} 20. Rxa4 {[%clk 0:01:33.2]} 20... Rfb8 {[%clk 0:01:47.2]} 21. Rb4
{[%clk 0:01:27.5]} 21... Be4+ {[%clk 0:01:40.1]} 22. Bf3 {[%clk 0:01:28.2]}
22... Bxf3+ {[%clk 0:01:40.8]} 23. Rxf3 {[%clk 0:01:29.4]} 23... Qc7 {[%clk
0:01:39]} 24. Rxb8+ {[%clk 0:01:27.3]} 24... Rxb8 {[%clk 0:01:38.6]} 25. g5
{[%clk 0:01:26.2]} 25... Qc4 {[%clk 0:01:35.8]} 26. Nc1 {[%clk 0:01:26.3]} 26...
Nf8 {[%clk 0:01:28]} 27. Nd3 {[%clk 0:01:03.5]} 27... Ng6 {[%clk 0:01:28.1]} 28.
Nb4 {[%clk 0:01:03.3]} 28... a5 {[%clk 0:01:28.1]} 29. Nc2 {[%clk 0:01:03.9]}
29... Qa2 {[%clk 0:01:26.4]} 30. Ne3 {[%clk 0:00:49]} 30... Rb1 {[%clk
0:01:13.5]} 31. Bc1 {[%clk 0:00:49.8]} 31... Qa1 {[%clk 0:01:13.7]} 32. Rf1
{[%clk 0:00:50.1]} 32... Nxf4 {[%clk 0:01:13.2]} 33. Nf5 {[%clk 0:00:51.1]}
33... exf5 {[%clk 0:01:10.5]} 0-1

[Event "*** MasterClass Titled Tuesday Blitz"]
[Site "Chess.com"]
[Date "2017.07.04"]
[Round "1"]
[White "Fy_Rakotomaharo"]
[Black "gena217"]
[Result "0-1"]
[WhiteElo "2345"]
[BlackElo "2162"]
[TimeControl "180+2"]
[EndTime "13:06:50 PDT"]
[Termination "gena217 won by resignation"]

1. e4 {[%clk 0:01:01.4]} 1... c5 {[%clk 0:02:59.6]} 2. Nf3 {[%clk 0:01:02.3]}
2... d6 {[%clk 0:03:00.9]} 3. d4 {[%clk 0:01:03.5]} 3... cxd4 {[%clk 0:03:01.5]}
4. Nxd4 {[%clk 0:01:05.4]} 4... Nf6 {[%clk 0:02:56.4]} 5. Nc3 {[%clk 0:01:06.6]}
5... a6 {[%clk 0:02:58]} 6. Bg5 {[%clk 0:01:06.9]} 6... e6 {[%clk 0:02:58.7]} 7.
f4 {[%clk 0:01:05.7]} 7... h6 {[%clk 0:02:59.8]} 8. Bh4 {[%clk 0:01:05.7]} 8...
Qb6 {[%clk 0:03:00.3]} 9. a3 {[%clk 0:01:04.1]} 9... Be7 {[%clk 0:02:59.2]} 10.
Bf2 {[%clk 0:01:04.8]} 10... Qc7 {[%clk 0:02:59.4]} 11. Qd2 {[%clk 0:01:05.4]}
11... Nc6 {[%clk 0:02:51.3]} 12. Be2 {[%clk 0:01:06.1]} 12... O-O {[%clk
0:02:51]} 13. O-O-O {[%clk 0:01:06]} 13... e5 {[%clk 0:02:43.8]} 14. Nxc6 {[%clk
0:01:04.2]} 14... bxc6 {[%clk 0:02:43.7]} 15. f5 {[%clk 0:00:54.7]} 15... d5
{[%clk 0:02:23.6]} 16. exd5 {[%clk 0:00:51]} 16... cxd5 {[%clk 0:02:25.5]} 17.
Nxd5 {[%clk 0:00:51.6]} 17... Nxd5 {[%clk 0:02:25.6]} 18. Qxd5 {[%clk
0:00:53.5]} 18... Bxf5 {[%clk 0:02:27.2]} 19. Qc4 {[%clk 0:00:51]} 19... Rfc8
{[%clk 0:02:28]} 20. Qxc7 {[%clk 0:00:42.7]} 20... Rxc7 {[%clk 0:02:29.9]} 21.
c4 {[%clk 0:00:43.6]} 21... Bg5+ {[%clk 0:02:11]} 22. Rd2 {[%clk 0:00:44.1]}
22... Rd8 {[%clk 0:02:11.5]} 23. Rd1 {[%clk 0:00:43.9]} 23... Rcd7 {[%clk
0:02:12.2]} 24. Be1 {[%clk 0:00:45]} 24... a5 {[%clk 0:01:44.2]} 25. b3 {[%clk
0:00:42.9]} 25... Rd4 {[%clk 0:01:36.3]} 26. g3 {[%clk 0:00:40.5]} 26... g6
{[%clk 0:01:33.2]} 27. b4 {[%clk 0:00:33.6]} 27... axb4 {[%clk 0:01:30.7]} 28.
axb4 {[%clk 0:00:35.5]} 28... Be3 {[%clk 0:01:32.2]} 29. b5 {[%clk 0:00:30.7]}
29... Kg7 {[%clk 0:01:32.3]} 30. c5 {[%clk 0:00:20.8]} 30... Rb4 {[%clk
0:01:31.2]} 0-1